bitfinex/quotes_BTCUSD_20251021
["timestamp","ask_amount","ask_price","bid_price","bid_amount"]
[1761004800427,0.0271567,110760.0,110750.0,0.00234086]
[1761004803186,0.5,110770.0,110750.0,0.00234086]
[1761004803382,0.03706818,110770.0,110750.0,0.00234086]
[1761004803586,3.0,110760.0,110750.0,0.00234086]
[1761004803788,3.0,110760.0,110750.0,0.02949756]
[1761004804037,3.0,110760.0,110750.0,0.02849756]
[1761004805245,3.0,110760.0,110750.0,0.02949756]
[1761004805447,3.0,110760.0,110750.0,0.21008446]
[1761004808057,3.02427787,110760.0,110750.0,0.21008446]
[1761004808277,0.02427787,110760.0,110750.0,0.21008446]
[1761004811114,3.23185017,110760.0,110750.0,0.00234086]
[1761004811319,3.25900931,110760.0,110750.0,0.00234086]
[1761004812716,3.07843871,110760.0,110750.0,0.00134086]
[1761004812925,3.25900931,110760.0,110750.0,0.00134086]
[1761004813136,3.05143701,110760.0,110750.0,0.00034086]
[1761004814188,3.05301059,110760.0,110750.0,0.00034086]
[1761004814608,3.23358119,110760.0,110750.0,0.00034086]
[1761004814820,3.05301059,110760.0,110750.0,0.00034086]
[1761004816817,0.05301059,110760.0,110750.0,0.00034086]
[1761004817262,0.02873272,110760.0,110750.0,0.18092776]
[1761004817465,0.02715914,110760.0,110750.0,0.00034086]
[1761004817720,0.23200761,110760.0,110750.0,0.00034086]
[1761004818334,3.23200761,110760.0,110750.0,0.00034086]
[1761004818899,3.05143701,110760.0,110750.0,0.00034086]
[1761004819100,3.23200761,110760.0,110750.0,0.00034086]
[1761004819730,3.05143701,110760.0,110750.0,0.00034086]
[1761004820649,3.23200761,110760.0,110750.0,0.00034086]
[1761004820993,3.23358118,110760.0,110750.0,0.00034086]
[1761004821834,3.32340019,110760.0,110750.0,0.00034086]
[1761004822054,3.29624105,110760.0,110750.0,0.00034086]
[1761004822689,3.18588466,110760.0,110750.0,0.00034086]
[1761004823129,3.20471059,110760.0,110750.0,0.00034086]
[1761004826327,3.23278631,110760.0,110750.0,0.00034086]
[1761004829546,3.23270756,110760.0,110750.0,0.00034086]
[1761004831137,3.20463184,110760.0,110750.0,0.00034086]
[1761004831343,3.23336144,110760.0,110750.0,0.00034086]
[1761004832163,3.23330767,110760.0,110750.0,0.00034086]
[1761004833185,3.29756567,110760.0,110750.0,0.00034086]
[1761004833586,3.32473004,110760.0,110750.0,0.00034086]
[1761004833791,3.32315647,110760.0,110750.0,0.00534086]
[1761004834379,3.32302598,110760.0,110750.0,0.00534086]
[1761004834777,0.18061952,110730.0,110710.0,0.20804873]
[1761004834986,0.02254451,110730.0,110720.0,0.00534086]
[1761004835199,0.02254451,110730.0,110720.0,0.00742543]
[1761004835576,0.20316403,110730.0,110720.0,0.00742543]
[1761004835695,0.20316403,110730.0,110720.0,0.00208457]
[1761004835696,3.22348024,110730.0,110720.0,0.00208457]
[1761004836300,3.22505414,110730.0,110720.0,0.00208457]
[1761004837158,3.22505414,110730.0,110720.0,0.00308457]
[1761004837346,3.22348024,110730.0,110720.0,0.00208457]
[1761004840468,3.22505415,110730.0,110720.0,0.00208457]
[1761004843136,3.22505415,110730.0,110720.0,0.00708457]
[1761004845660,3.02411842,110730.0,110720.0,0.1877204]
[1761004845877,3.34157391,110730.0,110720.0,0.00708457]
[1761004846295,3.34157391,110730.0,110720.0,0.1877204]
[1761004846496,3.34157391,110730.0,110720.0,0.00708457]
[1761004847593,3.34157391,110730.0,110720.0,0.1877204]
[1761004852013,3.54575601,110730.0,110720.0,0.00708457]
[1761004852218,3.36513649,110730.0,110720.0,0.00708457]
[1761004852420,3.54575601,110730.0,110720.0,0.00708457]
[1761004853066,3.36513649,110730.0,110720.0,0.00708457]
[1761004853275,3.36367209,110730.0,110720.0,0.00708457]
[1761004854727,3.54429161,110730.0,110720.0,0.00708457]
[1761004855941,3.36367209,110730.0,110720.0,0.00708457]
[1761004859387,3.52219343,110730.0,110720.0,0.00708457]
[1761004859587,3.61201244,110730.0,110720.0,0.00708457]
[1761004860432,3.63411062,110730.0,110720.0,0.00708457]
[1761004861850,3.54429161,110730.0,110720.0,0.00708457]
[1761004865032,3.36367209,110730.0,110720.0,0.00708457]
[1761004865473,3.36367209,110730.0,110720.0,0.1877204]
[1761004872399,0.00157391,110730.0,110720.0,0.3010804]
[1761004872832,0.00157391,110730.0,110720.0,0.32824305]
[1761004873260,3.0,110750.0,110740.0,0.18059603]
[1761004873444,3.34,110750.0,110740.0,0.18059603]
[1761004873640,3.34,110750.0,110740.0,0.18199849]
[1761004873930,0.005,110760.0,110750.0,0.1805869]
[1761004874120,3.005,110760.0,110750.0,0.1805869]
[1761004874625,3.345,110760.0,110750.0,0.1805869]
[1761004875273,3.345,110760.0,110750.0,0.18073393]
[1761004876324,3.5255706,110760.0,110750.0,0.00014703]
[1761004876537,3.52714424,110760.0,110750.0,0.00014703]
[1761004876951,0.34,110750.0,110740.0,0.27530379]
[1761004877166,0.34,110750.0,110740.0,0.16195281]
[1761004881165,3.34,110750.0,110740.0,0.20781296]
[1761004881497,3.34,110750.0,110740.0,0.20921542]
[1761004882250,3.34,110750.0,110740.0,0.18205469]
[1761004882639,3.34,110750.0,110740.0,0.00145148]
[1761004882996,3.61040591,110750.0,110740.0,0.00145148]
[1761004883209,3.6607745,110750.0,110740.0,0.00145148]
[1761004884056,0.34,110730.0,110720.0,0.30050383]
[1761004884220,0.34013287,110730.0,110720.0,0.30050383]
[1761004885330,0.34013287,110730.0,110720.0,0.30150383]
[1761004886473,0.00013287,110730.0,110720.0,0.30250383]
[1761004886646,0.34013287,110730.0,110720.0,0.30250383]
[1761004889119,0.00013287,110730.0,110720.0,0.30250383]
[1761004889502,0.34013287,110730.0,110720.0,0.30250383]
[1761004889701,0.34013287,110730.0,110720.0,0.30318581]
[1761004896075,0.00013287,110730.0,110720.0,0.30318581]
[1761004896371,0.34013287,110730.0,110720.0,0.30318581]
[1761004897262,0.00013287,110730.0,110720.0,0.30218581]
[1761004897414,0.34013287,110730.0,110720.0,0.30218581]
[1761004897615,0.34013287,110730.0,110720.0,0.30118581]
[1761004898167,0.34013287,110730.0,110720.0,0.30318581]
[1761004898382,3.0,110730.0,110720.0,0.30318581]
[1761004900893,0.34,110730.0,110720.0,0.30318581]
[1761004901363,3.41431613,110730.0,110720.0,0.00268198]
[1761004901567,3.39221795,110730.0,110720.0,0.18331781]
[1761004901975,3.34,110730.0,110720.0,0.00268198]
[1761004902177,3.34,110730.0,110720.0,0.18331781]
[1761004902432,3.34,110730.0,110720.0,0.00268198]
[1761004903233,3.36209818,110730.0,110720.0,0.00268198]
[1761004903800,3.36209818,110730.0,110720.0,0.18331781]
[1761004904409,3.36209818,110730.0,110720.0,0.00268198]
[1761004904819,3.34,110730.0,110720.0,0.00268198]
[1761004906073,3.52061952,110730.0,110720.0,0.00268198]
[1761004908147,3.34,110730.0,110720.0,0.18331781]
[1761004908780,3.34,110730.0,110720.0,0.00268198]
[1761004909205,3.34,110730.0,110720.0,0.18331781]
[1761004910876,3.34,110730.0,110720.0,0.00268198]
[1761004911080,3.52061952,110730.0,110720.0,0.00268198]
[1761004911286,3.55491435,110730.0,110720.0,0.00268198]
[1761004914148,3.37429483,110730.0,110720.0,0.00268198]
[1761004915009,3.34,110730.0,110720.0,0.00268198]
[1761004915415,3.34,110730.0,110720.0,0.18331781]
[1761004917365,3.34,110730.0,110720.0,0.00268198]
[1761004919399,3.36209818,110730.0,110720.0,0.00268198]
[1761004920192,3.52061952,110730.0,110720.0,0.00268198]
[1761004920393,3.66080712,110730.0,110720.0,0.00268198]
[1761004920809,3.6969894,110730.0,110720.0,0.00268198]
[1761004921041,0.34,110700.0,110690.0,0.285731]
[1761004922015,0.34,110700.0,110690.0,0.29476523]
[1761004922455,3.0,110710.0,110700.0,0.18065769]
[1761004923834,3.00157405,110710.0,110700.0,0.18065769]
[1761004924496,3.11349124,110710.0,110700.0,0.18065769]
[1761004925120,3.15094746,110710.0,110700.0,0.18065769]
[1761004926539,2.868571,110710.0,110700.0,0.18065769]
[1761004926755,3.06112845,110710.0,110700.0,0.18065769]
[1761004928026,0.34,110700.0,110690.0,0.29476523]
[1761004929207,3.34,110700.0,110690.0,0.29676523]
[1761004929404,0.34,110700.0,110690.0,0.29676523]
[1761004932943,3.36360711,110700.0,110690.0,0.002]
[1761004933163,3.36360711,110700.0,110690.0,0.18268479]
[1761004933365,3.36360711,110700.0,110690.0,0.18370814]
[1761004938640,3.34,110700.0,110690.0,0.18370814]
[1761004940876,3.36360711,110700.0,110690.0,0.18370814]
[1761004944567,3.34,110700.0,110690.0,0.18370814]
[1761004945622,0.34,110700.0,110690.0,0.18370814]
[1761004946479,3.03903027,110710.0,110700.0,0.18066847]
[1761004946725,3.37903027,110710.0,110700.0,0.18066847]
[1761004947565,3.37903027,110710.0,110700.0,0.29406847]
[1761004948204,3.40263738,110710.0,110700.0,0.29406847]
[1761004949070,3.37903027,110710.0,110700.0,0.29406847]
[1761004950625,3.34,110700.0,110680.0,0.18589923]
[1761004950822,3.52068479,110690.0,110680.0,0.0052]
[1761004951040,3.57399575,110690.0,110680.0,0.0052]
[1761004951440,3.36504055,110690.0,110680.0,0.0052]
[1761004951928,3.36504055,110690.0,110680.0,0.0062]
[1761004952132,3.54572534,110690.0,110680.0,0.00633287]
[1761004952349,3.54572534,110690.0,110680.0,0.00669746]
[1761004953206,0.34,110680.0,110670.0,0.17261129]
[1761004953354,0.3663986,110680.0,110670.0,0.1726604]
[1761004958773,0.3663986,110680.0,110670.0,0.17300163]
[1761004959100,3.6019661,110680.0,110670.0,0.00039034]
[1761004960339,3.0,110670.0,110660.0,0.17632383]
[1761004960533,0.00013281,110670.0,110660.0,0.17632383]
[1761004960744,0.00013281,110670.0,110650.0,0.30347265]
[1761004960962,0.02653141,110670.0,110660.0,0.18073377]
[1761004961557,0.02653141,110670.0,110660.0,0.18173377]
[1761004961770,0.02653141,110670.0,110660.0,0.18273377]
[1761004963086,0.02653141,110670.0,110660.0,0.002]
[1761004963300,0.0867413,110670.0,110660.0,0.18273377]
[1761004964167,0.0867413,110670.0,110660.0,0.18173377]
[1761004964813,0.0867413,110670.0,110660.0,0.18073377]
[1761004966086,0.0867413,110670.0,110660.0,0.18107506]
[1761004967721,0.02653141,110670.0,110660.0,0.18107506]
[1761004968138,0.00013281,110670.0,110660.0,0.18107506]
[1761004973227,0.00013281,110670.0,110660.0,0.18207506]
[1761004974208,0.00013281,110670.0,110660.0,0.18307506]
[1761004974590,0.00013281,110670.0,110660.0,0.21025107]
[1761004978356,0.00263691,110690.0,110680.0,0.18070112]
[1761004978539,0.00263691,110690.0,110680.0,0.29426112]
[1761004978938,0.00106248,110690.0,110680.0,0.29426112]
[1761004979843,0.00106248,110690.0,110680.0,0.29526112]
[1761004980493,0.00106248,110690.0,110680.0,0.41224913]
[1761004982683,0.00106248,110690.0,110680.0,0.41324913]
[1761004983565,0.00106248,110690.0,110680.0,0.20987012]
[1761004983803,0.00106248,110690.0,110680.0,0.32347012]
[1761004984156,0.00106248,110690.0,110680.0,0.20987012]
[1761004984362,0.00106248,110690.0,110680.0,0.29634112]
[1761004984561,3.00106248,110690.0,110680.0,0.002]
[1761004984859,3.45723806,110690.0,110680.0,0.002]
[1761004985613,3.45723806,110690.0,110680.0,0.001]
[1761004985831,0.34,110680.0,110670.0,0.18070258]
[1761004988624,0.34,110680.0,110670.0,0.18170258]
[1761004988859,0.34,110680.0,110670.0,0.18270258]
[1761004989090,0.00263687,110690.0,110680.0,0.18070112]
[1761004989314,0.21810912,110710.0,110690.0,0.18068479]
[1761004989523,3.0,110700.0,110690.0,0.18068479]
[1761004989737,3.00157427,110700.0,110690.0,0.18068479]
[1761004991444,3.34157427,110700.0,110690.0,0.18068479]
[1761004992473,3.34157427,110700.0,110690.0,0.11368479]
[1761004993632,3.34157427,110700.0,110690.0,0.13175326]
[1761004993633,0.34157427,110700.0,110690.0,0.13175326]
[1761004993866,0.00157427,110700.0,110690.0,0.13175326]
[1761004994079,0.34157427,110700.0,110690.0,0.13175326]
[1761004994706,0.34157427,110700.0,110690.0,0.11368479]
[1761004994926,3.0,110690.0,110680.0,0.30341617]
[1761004996220,0.02635657,110690.0,110680.0,0.30441617]
[1761004996451,0.02635657,110690.0,110680.0,0.30541617]
[1761004996673,3.36635657,110690.0,110680.0,0.18270112]
[1761004997008,3.36635657,110690.0,110680.0,0.002]
[1761004997223,3.63686037,110690.0,110680.0,0.002]
[1761004998107,3.63686037,110690.0,110680.0,0.001]
[1761004998534,3.52070112,110680.0,110670.0,0.00106258]
[1761004998948,3.54705769,110680.0,110670.0,0.00106258]
[1761005001137,3.54863218,110680.0,110670.0,0.00106258]
[1761005001599,3.63845119,110680.0,110670.0,0.00106258]
[1761005002063,3.67463347,110680.0,110670.0,0.00106258]
[1761005003366,3.67563347,110680.0,110670.0,0.00106258]
[1761005004681,3.67663347,110680.0,110670.0,0.00106258]
[1761005005454,3.70490388,110680.0,110670.0,0.00106258]
[1761005005654,0.34,110640.0,110630.0,0.18078278]
[1761005005823,3.34,110630.0,110620.0,0.28117146]
[1761005006024,0.34,110630.0,110620.0,0.28117146]
[1761005006434,0.34,110630.0,110620.0,0.46197059]
[1761005006643,0.02635657,110630.0,110620.0,0.46197059]
[1761005006840,0.02635657,110630.0,110620.0,0.46246178]
[1761005007196,0.05727259,110630.0,110620.0,0.46246178]
[1761005008095,3.55727259,110630.0,110620.0,0.46246178]
[1761005008303,3.12073503,110630.0,110620.0,0.46246178]
[1761005008719,3.46073503,110630.0,110620.0,0.46246178]
[1761005008936,3.37091602,110630.0,110620.0,0.46246178]
[1761005010607,0.37091602,110630.0,110620.0,0.46246178]
[1761005010817,0.00157516,110640.0,110630.0,0.18078278]
[1761005011236,0.03249118,110640.0,110630.0,0.18214829]
[1761005012660,0.03249118,110640.0,110630.0,0.11514829]
[1761005012867,0.03249118,110640.0,110630.0,0.13322656]
[1761005013098,0.03249118,110640.0,110630.0,0.11514829]
[1761005014268,3.37249118,110640.0,110630.0,0.11514829]
[1761005014888,3.3971325,110640.0,110630.0,0.11514829]
[1761005015297,3.3971325,110640.0,110630.0,0.00136551]
[1761005015575,3.46432349,110640.0,110630.0,0.18214829]
[1761005015883,3.46274833,110640.0,110630.0,0.18214829]
[1761005017367,3.39555734,110640.0,110630.0,0.18214829]
[1761005018223,3.39555734,110640.0,110630.0,0.00136551]
[1761005018853,3.57632378,110640.0,110630.0,0.00136551]
[1761005019066,3.57789894,110640.0,110630.0,0.00136551]
[1761005020375,3.57889894,110640.0,110630.0,0.00136551]
[1761005020633,3.66871795,110640.0,110630.0,0.00136551]
[1761005021062,3.66971795,110640.0,110630.0,0.00136551]
[1761005022269,3.70590023,110640.0,110630.0,0.00136551]
[1761005024063,3.70590023,110640.0,110630.0,1e-08]
[1761005024305,3.5585731,110610.0,110600.0,0.29305143]
[1761005024537,3.5585731,110610.0,110600.0,0.29318424]
[1761005024751,3.52239082,110610.0,110600.0,0.22618424]
[1761005025173,3.53657289,110610.0,110600.0,0.22618424]
[1761005026241,3.57275517,110610.0,110600.0,0.22618424]
[1761005026453,3.59791548,110610.0,110600.0,0.22618424]
[1761005027232,3.53857289,110610.0,110600.0,0.22618424]
[1761005028079,3.5637332,110610.0,110600.0,0.22618424]
[1761005028513,3.53857289,110610.0,110600.0,0.22618424]
[1761005030024,3.53699754,110610.0,110600.0,0.22720883]
[1761005031137,3.54599754,110610.0,110600.0,0.22720883]
[1761005031694,3.36518207,110610.0,110600.0,0.22720883]
[1761005031939,3.351,110610.0,110600.0,0.18020883]
[1761005033728,3.53181547,110610.0,110600.0,0.18020883]
[1761005034155,3.351,110610.0,110600.0,0.36104065]
[1761005034360,3.011,110610.0,110600.0,0.36104065]
[1761005034801,3.351,110610.0,110600.0,0.36104065]
[1761005035423,3.35,110610.0,110600.0,0.36104065]
[1761005035864,3.341,110610.0,110600.0,0.36104065]
[1761005036064,3.34,110610.0,110600.0,0.36104065]
[1761005037264,3.34,110610.0,110600.0,0.18020883]
[1761005037610,3.52081547,110610.0,110600.0,0.18020883]
[1761005038987,3.52081547,110610.0,110600.0,0.14620883]
[1761005046141,3.54597578,110610.0,110600.0,0.12320883]
[1761005048230,3.52081547,110610.0,110600.0,0.12320883]
[1761005053205,3.52081547,110610.0,110600.0,0.10420883]
[1761005053856,3.54597578,110610.0,110600.0,0.10420883]
[1761005056339,3.34,110610.0,110600.0,0.10420883]
[1761005057366,3.34,110610.0,110600.0,0.30312383]
[1761005057604,3.34,110610.0,110600.0,0.28504065]
[1761005058810,3.34,110610.0,110600.0,0.10420883]
[1761005059032,3.54597578,110610.0,110600.0,0.10420883]
[1761005061098,3.54597578,110610.0,110600.0,0.07320883]
[1761005067912,3.54597578,110610.0,110600.0,0.06620883]
[1761005069295,3.54597578,110610.0,110600.0,0.06463348]
[1761005069904,3.52081547,110610.0,110600.0,0.06463348]
[1761005070105,3.52239142,110610.0,110600.0,0.06463348]
[1761005070653,3.34157595,110610.0,110600.0,0.2454653]
[1761005071068,3.34157595,110610.0,110600.0,0.06463348]
[1761005071280,3.34157595,110610.0,110600.0,0.2454653]
[1761005071707,0.34157595,110610.0,110600.0,0.2454653]
[1761005073511,0.52239142,110610.0,110600.0,0.06463348]
[1761005074435,0.34157595,110610.0,110600.0,0.06463348]
[1761005074636,0.36673626,110610.0,110600.0,0.06463348]
[1761005075040,0.36673626,110610.0,110600.0,0.00663348]
[1761005075405,0.36673626,110610.0,110600.0,0.1874653]
[1761005075645,0.36673626,110610.0,110600.0,0.00663348]
[1761005075843,0.36673626,110610.0,110600.0,0.1874653]
[1761005076437,0.36673626,110610.0,110600.0,0.00663348]
[1761005076863,0.02673626,110610.0,110600.0,0.00663348]
[1761005077534,0.02673626,110610.0,110600.0,0.1874653]
[1761005078836,0.00157595,110610.0,110600.0,0.1874653]
[1761005079042,0.02673626,110610.0,110600.0,0.1874653]
[1761005081064,0.00157595,110610.0,110600.0,0.1874653]
[1761005082299,0.00157595,110610.0,110600.0,0.1294653]
[1761005082522,0.00157595,110610.0,110600.0,0.14754848]
[1761005082934,0.03091602,110640.0,110630.0,0.18078278]
[1761005082935,0.53091602,110640.0,110630.0,0.18078278]
[1761005083154,3.03091602,110640.0,110630.0,0.18078278]
[1761005083358,3.0,110640.0,110630.0,0.18078278]
[1761005083541,3.00174609,110640.0,110630.0,0.18078278]
[1761005084234,3.0,110630.0,110620.0,0.18078428]
[1761005084442,0.34,110630.0,110620.0,0.18078428]
[1761005089290,0.34,110630.0,110620.0,0.18084564]
[1761005089503,3.02858271,110640.0,110630.0,0.18078278]
[1761005089696,0.02858271,110640.0,110630.0,0.18078278]
[1761005090332,0.0303288,110640.0,110630.0,0.18078278]
[1761005091745,0.0303288,110640.0,110630.0,0.18178278]
[1761005092149,0.0303288,110640.0,110630.0,0.18278278]
[1761005092747,0.3703288,110640.0,110630.0,0.18278278]
[1761005093256,0.3703288,110640.0,110630.0,0.002]
[1761005093457,0.3703288,110640.0,110630.0,0.18278278]
[1761005094146,3.63136374,110640.0,110630.0,0.002]
[1761005095015,0.34,110630.0,110620.0,0.18079713]
[1761005095242,0.36516031,110630.0,110610.0,0.18985284]
[1761005095674,0.02516031,110620.0,110610.0,0.18985284]
[1761005098087,0.02516031,110620.0,110610.0,0.19085284]
[1761005098294,0.02516031,110620.0,110610.0,0.23428865]
[1761005098493,3.34,110630.0,110620.0,0.18079913]
[1761005098698,0.34,110630.0,110620.0,0.18079913]
[1761005098969,3.0,110630.0,110620.0,0.18079913]
[1761005099333,3.0,110630.0,110620.0,0.22240791]
[1761005100368,0.00140476,110630.0,110620.0,0.22240791]
[1761005101055,0.00140476,110630.0,110620.0,0.29503913]
[1761005101525,0.00140476,110630.0,110620.0,0.26003912]
[1761005102352,0.00140476,110630.0,110620.0,0.26103912]
[1761005104260,0.00140476,110630.0,110620.0,0.26203912]
[1761005106849,0.00140476,110630.0,110620.0,0.29703913]
[1761005107076,0.34140476,110630.0,110620.0,0.29699913]
[1761005108281,0.00140476,110630.0,110620.0,0.29699913]
[1761005108486,0.00140476,110630.0,110620.0,0.22999913]
[1761005110756,0.00140476,110630.0,110620.0,0.27632791]
[1761005111197,0.34140476,110630.0,110620.0,0.27632791]
[1761005111405,0.34140476,110630.0,110620.0,0.22999913]
[1761005111609,0.34298024,110630.0,110620.0,0.22999913]
[1761005115953,0.00298024,110630.0,110620.0,0.22999913]
[1761005117022,0.34298024,110630.0,110620.0,0.20299913]
[1761005117986,0.00298024,110630.0,110620.0,0.20299913]
[1761005118200,0.00298024,110630.0,110620.0,0.24662791]
[1761005118558,0.00298024,110630.0,110620.0,0.33644692]
[1761005119383,0.00298024,110630.0,110620.0,0.3726292]
[1761005119590,0.00140476,110630.0,110620.0,0.3726292]
[1761005121245,0.00140476,110630.0,110620.0,0.3746292]
[1761005122201,1e-08,110630.0,110620.0,0.3746292]
[1761005122438,1e-08,110630.0,110620.0,0.72462919]
[1761005122643,1e-08,110630.0,110620.0,0.76180522]
[1761005123060,1e-08,110630.0,110620.0,0.78547362]
[1761005125261,1e-08,110630.0,110620.0,0.77547363]
[1761005125464,1e-08,110630.0,110620.0,0.78547362]
[1761005128438,1e-08,110630.0,110620.0,0.66127363]
[1761005128585,1e-08,110630.0,110620.0,0.59142296]
[1761005128796,1e-08,110630.0,110620.0,0.70350296]
[1761005129036,1e-08,110630.0,110620.0,0.39968524]
[1761005129242,1e-08,110630.0,110620.0,0.40168524]
[1761005131465,1e-08,110630.0,110620.0,0.40368524]
[1761005134241,1e-08,110630.0,110620.0,0.55188524]
[1761005137533,3.34,110670.0,110660.0,0.18073377]
[1761005137746,0.34,110670.0,110660.0,0.18073377]
[1761005137958,0.36351403,110670.0,110660.0,0.18073377]
[1761005138168,0.36487922,110670.0,110660.0,0.18073377]
[1761005138805,0.36537011,110670.0,110660.0,0.18073377]
[1761005139024,0.36537011,110670.0,110660.0,0.13773377]
[1761005139230,0.36537011,110670.0,110660.0,0.15580714]
[1761005143730,3.36537011,110670.0,110660.0,0.001]
[1761005144369,3.36537011,110670.0,110660.0,0.18073377]
[1761005146091,3.36537011,110670.0,110660.0,0.15273377]
[1761005147563,3.36537011,110670.0,110660.0,0.17080714]
[1761005147770,0.36537011,110670.0,110660.0,0.17080714]
[1761005153112,0.36537011,110670.0,110660.0,0.11980714]
[1761005158325,0.36537011,110670.0,110660.0,0.01807337]
[1761005158737,3.54608755,110670.0,110660.0,0.01807337]
[1761005158970,0.18079913,110620.0,110610.0,0.00106334]
[1761005159095,3.52979913,110620.0,110610.0,0.00106334]
[1761005159299,3.52084817,110590.0,110580.0,0.27947686]
[1761005159531,3.55464249,110590.0,110580.0,0.27947686]
[1761005159989,3.57151728,110590.0,110580.0,0.27947686]
[1761005160188,3.57151728,110590.0,110580.0,0.25162433]
[1761005160831,3.53772296,110590.0,110580.0,0.25162433]
[1761005162290,3.53872296,110590.0,110580.0,0.25162433]
[1761005163718,3.5638383,110590.0,110580.0,0.25162433]
[1761005164600,3.53872296,110590.0,110580.0,0.25162433]
[1761005165020,3.53872296,110590.0,110580.0,0.2526492]
[1761005166074,3.5638383,110590.0,110580.0,0.2526492]
[1761005167478,3.5638383,110590.0,110580.0,0.2276492]
[1761005168526,3.5638383,110590.0,110580.0,0.22708709]
[1761005169592,3.5910428,110590.0,110580.0,0.22708709]
[1761005172212,3.38507929,110590.0,110580.0,0.40795162]
[1761005172461,3.341,110590.0,110580.0,0.40795162]
[1761005172644,0.341,110590.0,110580.0,0.40795162]
[1761005174785,0.36611534,110590.0,110580.0,0.36795162]
[1761005175088,0.36611534,110590.0,110580.0,0.36653434]
[1761005182769,0.36611534,110590.0,110580.0,0.34753434]
[1761005183406,0.38286723,110590.0,110580.0,0.34753434]
[1761005183624,0.35775189,110590.0,110580.0,0.40151597]
[1761005183851,0.001,110590.0,110580.0,0.51683597]
[1761005184984,0.001,110590.0,110580.0,0.60765498]
[1761005185208,0.19885909,110630.0,110610.0,0.18081526]
[1761005187816,0.35678289,110610.0,110600.0,0.29647996]
[1761005188236,0.35678289,110610.0,110600.0,0.29649338]
[1761005188453,0.35678289,110610.0,110600.0,0.00034156]
[1761005188454,0.53759836,110610.0,110600.0,0.00034156]
[1761005188671,0.35678289,110610.0,110600.0,0.00034156]
[1761005188882,0.35678289,110610.0,110600.0,0.19925656]
[1761005189103,0.35678289,110610.0,110600.0,0.18117338]
[1761005189760,0.35678289,110610.0,110600.0,0.13517338]
[1761005189969,0.35678289,110610.0,110600.0,0.15325656]
[1761005192952,0.18079949,110620.0,110600.0,0.15325656]
[1761005193157,0.01807347,110610.0,110600.0,0.15325656]
[1761005195234,0.01807347,110610.0,110600.0,0.15210856]
[1761005195885,0.19888894,110610.0,110600.0,0.01808318]
[1761005196103,3.0,110610.0,110600.0,0.01808318]
[1761005196304,3.18081547,110610.0,110600.0,0.01808318]
[1761005196503,3.0,110610.0,110600.0,0.01808318]
[1761005197175,3.52081547,110610.0,110600.0,0.01808318]
[1761005201826,0.34,110590.0,110580.0,0.34523392]
[1761005202014,0.34,110590.0,110580.0,0.46035392]
[1761005203420,0.34,110590.0,110580.0,0.46135392]
[1761005204999,0.35686529,110590.0,110580.0,0.46135392]
[1761005205202,0.35686529,110590.0,110580.0,0.46032072]
[1761005205630,0.35686529,110590.0,110580.0,0.52648539]
[1761005207416,0.35686529,110590.0,110580.0,0.52716867]
[1761005208590,0.01686529,110590.0,110580.0,0.52716867]
[1761005209217,0.02260397,110600.0,110590.0,0.18084817]
[1761005209423,0.03947242,110600.0,110590.0,0.18084817]
[1761005210032,0.03947242,110600.0,110590.0,0.25065165]
[1761005210248,0.01686845,110600.0,110590.0,0.25065165]
[1761005210424,0.01686845,110600.0,110590.0,0.24907614]
[1761005210994,0.01686845,110600.0,110590.0,0.17927266]
[1761005211201,0.01686845,110600.0,110590.0,0.19640995]
[1761005213922,0.01686845,110600.0,110590.0,0.17240995]
[1761005214937,0.01686845,110600.0,110590.0,0.17275156]
[1761005215366,0.01686845,110600.0,110590.0,1e-08]
[1761005215367,3.24541958,110600.0,110590.0,1e-08]
[1761005215587,3.52086453,110580.0,110570.0,0.01140531]
[1761005215806,3.54673298,110580.0,110570.0,0.01149415]
[1761005216017,3.63922273,110580.0,110570.0,0.01149415]
[1761005216227,3.66306772,110580.0,110570.0,0.01149415]
[1761005216443,3.66464413,110580.0,110570.0,0.01149415]
[1761005216648,3.66306772,110580.0,110570.0,0.01149415]
[1761005217360,3.60928027,110580.0,110570.0,0.01149415]
[1761005217579,3.57257797,110580.0,110570.0,0.01149415]
[1761005219150,3.57415437,110580.0,110570.0,0.01149415]
[1761005220201,3.36903833,110580.0,110570.0,0.01149415]
[1761005220417,3.54990286,110580.0,110570.0,0.01149415]
[1761005221056,3.23409309,110580.0,110570.0,0.01149415]
[1761005221271,3.02038357,110580.0,110570.0,0.01217752]
[1761005221486,0.18444093,110580.0,110570.0,0.01217752]
[1761005222122,0.18344093,110580.0,110570.0,0.01217752]
[1761005222333,0.52344093,110580.0,110570.0,0.01217752]
[1761005222549,0.52444093,110580.0,110570.0,0.01217752]
[1761005222768,0.52344093,110580.0,110570.0,0.01217752]
[1761005223020,3.54787953,110580.0,110570.0,0.01217752]
[1761005223229,3.56568197,110580.0,110570.0,0.01217752]
[1761005224564,3.22568197,110580.0,110570.0,0.01217752]
[1761005224769,3.56568197,110580.0,110570.0,0.01217752]
[1761005226023,3.56568197,110580.0,110570.0,0.00417752]
[1761005226448,3.59399427,110580.0,110570.0,0.00417752]
[1761005227488,3.59241787,110580.0,110570.0,0.00417752]
[1761005227891,3.56410557,110580.0,110570.0,0.00417752]
[1761005229028,0.52088088,110570.0,110560.0,0.28581956]
[1761005229236,3.5634821,110570.0,110560.0,0.28596656]
[1761005229886,3.57766969,110570.0,110560.0,0.28596656]
[1761005230523,3.58024611,110570.0,110560.0,0.28596656]
[1761005231382,3.61787577,110570.0,110560.0,0.28596656]
[1761005232226,3.61887577,110570.0,110560.0,0.28596656]
[1761005233066,3.61887577,110570.0,110560.0,0.25196656]
[1761005233291,3.67324577,110570.0,110560.0,0.25196656]
[1761005233508,3.71155806,110570.0,110560.0,0.25196656]
[1761005234122,3.68324576,110570.0,110560.0,0.25196656]
[1761005234736,3.68324576,110570.0,110560.0,0.25230831]
[1761005235358,3.68320745,110570.0,110560.0,0.25230831]
[1761005236020,3.69220745,110570.0,110560.0,0.25230831]
[1761005236227,3.75952834,110570.0,110560.0,0.25230831]
[1761005236455,3.65640868,110570.0,110560.0,0.25230831]
[1761005236633,3.68185933,110570.0,110560.0,0.25230831]
[1761005239018,3.62748933,110570.0,110560.0,0.25230831]
[1761005240725,3.68185933,110570.0,110560.0,0.25230831]
[1761005240920,3.59303868,110570.0,110560.0,0.22230831]
[1761005241942,3.61848933,110570.0,110560.0,0.22230831]
[1761005242159,3.61748933,110570.0,110560.0,0.22230831]
[1761005242459,3.60230174,110570.0,110560.0,0.22230831]
[1761005242665,3.60430174,110570.0,110560.0,0.22230831]
[1761005247980,3.60430174,110570.0,110560.0,0.20030831]
[1761005250397,3.57885109,110570.0,110560.0,0.20030831]
[1761005255083,3.57627467,110570.0,110560.0,0.16230831]
[1761005255711,3.57637403,110570.0,110560.0,0.16230831]
[1761005255885,3.57737403,110570.0,110560.0,0.16230831]
[1761005256539,3.60282468,110570.0,110560.0,0.16230831]